bitfinex/quotes_BTCUSD_20251224
["timestamp","ask_amount","ask_price","bid_price","bid_amount"]
[1766593586356,0.01103485,86980.0,86972.0,0.01149795]
[1766593586596,0.12344,86971.0,86956.0,0.01150006]
[1766593586916,0.12344,86972.0,86962.0,0.02312572]
[1766593587057,0.12344,86972.0,86965.0,0.01149887]
[1766593587257,0.12344,86972.0,86966.0,0.01149874]
[1766593587673,0.12344,86972.0,86965.0,0.01149887]
[1766593587894,0.12344,86972.0,86966.0,0.01149874]
[1766593588255,0.12344,86972.0,86967.0,0.01149861]
[1766593589529,0.12344,86972.0,86968.0,0.01149848]
[1766593589947,0.12344,86972.0,86969.0,0.01149834]
[1766593590148,0.01152,86975.0,86969.0,1e-08]
[1766593590671,0.02301755,86975.0,86969.0,1e-08]
[1766593591058,0.01152,86975.0,86969.0,1e-08]
[1766593592499,0.01149795,86972.0,86962.0,0.00010645]
[1766593592640,0.13186795,86972.0,86961.0,0.0114994]
[1766593592842,0.013773,86969.0,86962.0,0.01149927]
[1766593593554,0.013773,86969.0,86963.0,0.01149914]
[1766593593819,0.12037,86972.0,86965.0,0.01149887]
[1766593594102,0.12037,86972.0,86966.0,0.0574934]
[1766593594308,0.12037,86972.0,86966.0,0.01149874]
[1766593594565,0.12037,86972.0,86968.0,0.01149848]
[1766593594981,0.01152,86974.0,86970.0,0.05749075]
[1766593595180,0.01162639,86974.0,86970.0,0.01149821]
[1766593595358,0.01152,86976.0,86970.0,1.3e-07]
[1766593595534,0.01152,86976.0,86970.0,0.01149834]
[1766593595722,0.01152,86976.0,86970.0,0.06898882]
[1766593595923,0.01152,86976.0,86971.0,0.01149808]
[1766593596131,0.01152,86976.0,86970.0,0.05749066]
[1766593596328,0.01152,86976.0,86970.0,0.01149834]
[1766593596700,0.01152,86976.0,86971.0,0.06898792]
[1766593596897,0.01152,86976.0,86970.0,0.06898889]
[1766593597130,0.01152,86976.0,86970.0,0.01149834]
[1766593597624,0.01152,86976.0,86970.0,1.3e-07]
[1766593598172,0.01152,86976.0,86970.0,0.01149834]
[1766593598342,0.01152,86976.0,86970.0,0.06898936]
[1766593598539,0.00043887,86970.0,86965.0,0.01149887]
[1766593598764,0.01152,86976.0,86967.0,0.01149861]
[1766593598967,0.01152,86976.0,86969.0,0.01149834]
[1766593599143,0.12812,86976.0,86969.0,0.01149834]
[1766593600365,0.12812,86976.0,86968.0,0.01149848]
[1766593600568,0.12812,86976.0,86967.0,0.06899164]
[1766593600859,0.12812,86976.0,86965.0,0.02312526]
[1766593600860,0.13961742,86976.0,86965.0,0.02312526]
[1766593601093,0.000439,86967.0,86965.0,0.01162639]
[1766593601530,0.1166,86974.0,86965.0,0.02312526]
[1766593601698,0.1166,86974.0,86965.0,0.01162639]
[1766593602442,0.12809768,86974.0,86965.0,0.01162639]
[1766593602665,0.1166,86973.0,86965.0,0.01162639]
[1766593603296,0.1166,86973.0,86966.0,0.0689923]
[1766593603503,0.1166,86973.0,86965.0,0.01162639]
[1766593603504,0.1166,86993.0,86982.0,0.01149663]
[1766593603738,0.0248355,86992.0,86983.0,0.01149649]
[1766593603944,0.01152,86988.0,86985.0,0.05748117]
[1766593604574,0.01152,86988.0,86984.0,0.05748183]
[1766593604771,0.01152,86988.0,86985.0,0.01149623]
[1766593605004,0.01152,86988.0,86985.0,0.06897736]
[1766593605360,0.01160478,86996.0,86995.0,0.05747456]
[1766593605361,0.00011,86996.0,86995.0,0.05747456]
[1766593605751,0.01152,87002.0,86999.0,0.01149438]
[1766593605958,0.1166,87006.0,87000.0,0.01149425]
[1766593606159,0.1166,87006.0,87003.0,0.01149385]
[1766593606284,0.1166,87006.0,87004.0,0.05746847]
[1766593606489,0.11695475,87006.0,87003.0,0.01149385]
[1766593606692,0.01152,87009.0,87006.0,0.00019425]
[1766593606894,0.01162638,87009.0,87002.0,0.01149398]
[1766593607303,0.01162638,87009.0,87003.0,0.01149385]
[1766593607562,0.01162638,87009.0,87005.0,0.01149359]
[1766593607703,0.01162638,87009.0,87004.0,0.01149372]
[1766593608105,0.01162638,87009.0,87005.0,0.01149359]
[1766593608423,0.01143138,87009.0,87006.0,0.01149346]
[1766593608726,0.00011,87013.0,87012.0,0.05746333]
[1766593608898,0.01152,87021.0,87013.0,0.01149253]
[1766593609148,0.01152,87021.0,87014.0,0.0114924]
[1766593609507,0.000549,87014.0,87010.0,0.06895758]
[1766593609677,0.000549,87014.0,87011.0,0.06895676]
[1766593609863,0.000549,87014.0,87013.0,0.05746267]
[1766593610064,0.000549,87014.0,87011.0,0.01149279]
[1766593610065,0.1166,87020.0,87017.0,0.011492]
[1766593610266,0.013773,87024.0,87021.0,0.05745726]
[1766593610475,0.01377342,87029.0,87022.0,0.01149134]
[1766593610682,0.01152,87028.0,87022.0,0.06894806]
[1766593610993,0.01152,87028.0,87020.0,0.01149161]
[1766593611193,0.01152,87028.0,87014.0,0.06895438]
[1766593611763,4.2e-07,87029.0,87025.0,0.01149095]
[1766593611884,4.2e-07,87029.0,87026.0,0.06894487]
[1766593612308,4.2e-07,87029.0,87026.0,0.01149081]
[1766593612727,4.2e-07,87029.0,87026.0,0.06894482]
[1766593612899,4.2e-07,87029.0,87027.0,0.05745332]
[1766593613320,4.2e-07,87029.0,87025.0,0.01149095]
[1766593613519,4.2e-07,87029.0,87024.0,0.01149108]
[1766593613840,4.2e-07,87029.0,87022.0,0.01152]
[1766593614001,4.2e-07,87029.0,87024.0,0.01149108]
[1766593614434,0.000549,87024.0,87018.0,0.01152]
[1766593614647,0.00055,87018.0,87013.0,0.02301253]
[1766593614840,0.00055,87018.0,87010.0,0.05746455]
[1766593615056,0.1166,87017.0,87009.0,0.02301306]
[1766593615258,0.1166,87017.0,87009.0,0.01152]
[1766593615460,0.1166,87017.0,87009.0,0.05746531]
[1766593615660,0.1166,87017.0,87011.0,0.06895678]
[1766593615813,0.1166,87017.0,87014.0,0.05746177]
[1766593616016,0.01152,87022.0,87014.0,0.0114924]
[1766593616220,0.00011,87024.0,87015.0,0.01149227]
[1766593616414,0.00011,87024.0,87013.0,0.0689552]
[1766593616415,0.00011,87024.0,87019.0,0.01149174]
[1766593616614,0.00011,87024.0,87020.0,0.06894964]
[1766593616845,0.1166,87033.0,87023.0,0.06894728]
[1766593617021,0.01152042,87029.0,87024.0,0.01149108]
[1766593617241,0.01152042,87029.0,87021.0,0.06894844]
[1766593617423,4.2e-07,87029.0,87021.0,0.01149147]
[1766593617623,4.2e-07,87029.0,87022.0,0.01149134]
[1766593617819,4.2e-07,87029.0,87023.0,0.01149121]
[1766593618227,4.2e-07,87029.0,87024.0,0.06894606]
[1766593618426,0.00047218,87030.0,87028.0,0.05745277]
[1766593618827,2.18e-06,87030.0,87027.0,0.01149068]
[1766593619031,0.0114891,87039.0,87028.0,0.01149055]
[1766593619261,0.06904123,87039.0,87028.0,0.01149055]
[1766593619413,0.01152,87038.0,87028.0,0.01149055]
[1766593619820,0.01152,87037.0,87029.0,0.01149042]
[1766593620287,0.00011,87040.0,87036.0,0.01148949]
[1766593620492,0.01152,87042.0,87035.0,0.01148963]
[1766593620691,0.01152,87041.0,87035.0,0.00010634]
[1766593620895,0.01152,87041.0,87035.0,0.01159597]
[1766593621208,0.01152,87041.0,87037.0,0.01148936]
[1766593621441,0.01152,87043.0,87035.0,0.00010634]
[1766593622780,0.02300857,87043.0,87035.0,0.00010634]
[1766593623029,0.08045164,87043.0,87035.0,0.00010634]
[1766593623223,0.01152,87043.0,87035.0,0.00010634]
[1766593623867,0.01148883,87041.0,87035.0,0.00010634]
[1766593624073,0.11742,87034.0,87025.0,0.01152]
[1766593624449,0.11742,87034.0,87031.0,0.01149015]
[1766593624650,0.11742,87034.0,87025.0,0.01152]
[1766593624949,0.11742,87034.0,87026.0,0.01149081]
[1766593625152,0.11742,87034.0,87025.0,0.02301095]
[1766593625481,0.06893993,87033.0,87025.0,0.01152]
[1766593625683,0.11742,87034.0,87025.0,0.01152]
[1766593625976,0.11742,87034.0,87013.0,0.04596]
[1766593625977,0.000443,87025.0,87017.0,0.011492]
[1766593626168,0.00054928,87025.0,87022.0,0.01149134]
[1766593626373,0.01152,87036.0,87027.0,0.01149068]
[1766593626625,0.08209185,87101.0,87023.0,0.05745602]
[1766593626626,0.01152,87038.0,87026.0,0.11257]
[1766593626798,0.01162632,87038.0,87035.0,0.01148963]
[1766593627047,0.01162632,87038.0,87034.0,0.01148976]
[1766593627510,0.01162632,87038.0,87035.0,0.06893716]
[1766593627768,0.01162632,87038.0,87035.0,0.01148963]
[1766593627987,0.01162632,87038.0,87031.0,0.01149015]
[1766593628207,0.01162632,87038.0,87028.0,0.01149055]
[1766593628208,0.01162632,87038.0,87029.0,0.01149042]
[1766593628438,0.01162632,87038.0,87027.0,0.01149068]
[1766593628610,0.02311555,87038.0,87028.0,0.01149055]
[1766593628824,0.01162632,87038.0,87029.0,0.01149042]
[1766593629048,0.02311555,87038.0,87028.0,0.01149055]
[1766593629181,0.01162632,87038.0,87029.0,0.01149042]
[1766593629387,0.08056179,87038.0,87026.0,0.01149081]
[1766593629626,0.00010632,87038.0,87029.0,0.01149042]
[1766593629827,0.00010632,87038.0,87030.0,0.05745135]
[1766593630003,0.00010632,87038.0,87032.0,0.01149002]
[1766593630356,0.00010632,87038.0,87032.0,0.06894015]
[1766593630485,0.00010632,87038.0,87033.0,0.01148989]
[1766593631126,3.2e-07,87038.0,87033.0,0.01148989]
[1766593631346,3.2e-07,87038.0,87034.0,0.01148976]
[1766593631486,3.2e-07,87038.0,87033.0,0.06893928]
[1766593631691,0.01152,87041.0,87035.0,0.01148963]
[1766593631911,0.02300804,87047.0,87041.0,0.00040231]
[1766593632131,0.01152,87047.0,87040.0,0.01148897]
[1766593632335,0.02300804,87047.0,87038.0,0.013773]
[1766593632545,0.05744089,87046.0,87038.0,0.013773]
[1766593632785,0.000106,87038.0,87034.0,0.025293]
[1766593632997,0.01148936,87037.0,87030.0,0.013773]
[1766593633139,0.11742,87041.0,87030.0,0.013773]
[1766593633140,0.11742,87041.0,87030.0,0.02533369]
[1766593633346,0.11742,87041.0,87033.0,0.01148989]
[1766593633580,0.01148817,87046.0,87033.0,0.01148989]
[1766593633581,0.06893116,87045.0,87033.0,0.01094997]
[1766593633781,0.01148857,87043.0,87032.0,0.01149002]
[1766593633980,0.01148857,87043.0,87031.0,0.01149015]
[1766593634189,0.01148883,87041.0,87030.0,0.03682398]
[1766593634611,0.01148897,87040.0,87030.0,0.09427496]
[1766593634833,0.01148897,87040.0,87030.0,0.03682398]
[1766593635242,0.01148883,87041.0,87031.0,0.01149015]
[1766593635402,0.0689328,87042.0,87032.0,0.01149002]
[1766593635611,0.0689328,87042.0,87031.0,0.06894073]
[1766593635912,0.01148883,87041.0,87031.0,0.01149015]
[1766593636116,0.1863528,87042.0,87032.0,0.01149002]
[1766593636522,0.1863528,87042.0,87031.0,0.01149015]
[1766593636720,0.01148765,87050.0,87036.0,0.01148949]
[1766593636947,0.01148831,87045.0,87035.0,0.01148963]
[1766593637126,0.01152,87044.0,87037.0,0.01148936]
[1766593637325,0.01152,87044.0,87035.0,0.01148963]
[1766593637603,0.02300844,87044.0,87030.0,0.02305098]
[1766593637815,0.02300844,87044.0,87030.0,0.01156069]
[1766593637816,0.0114891,87039.0,87030.0,0.01156069]
[1766593638034,0.01148897,87040.0,87030.0,0.01156069]
[1766593638266,0.06893362,87041.0,87030.0,0.02305098]
[1766593638484,0.0114891,87039.0,87030.0,0.01156069]
[1766593638713,0.01148897,87040.0,87030.0,0.01156069]
[1766593638929,0.0574453,87040.0,87030.0,0.02305098]
[1766593639173,0.01148923,87038.0,87030.0,0.01156069]
[1766593639351,0.01148949,87036.0,87030.0,4.069e-05]
[1766593639659,0.06893664,87037.0,87030.0,4.069e-05]
[1766593639857,0.22977673,87042.0,87030.0,0.01153098]
[1766593639858,0.01148897,87040.0,87030.0,0.01153098]
[1766593640063,0.01148883,87041.0,87030.0,4.069e-05]
[1766593640264,0.06893467,87039.0,87030.0,4.069e-05]
[1766593640494,0.06893382,87040.0,87030.0,4.069e-05]
[1766593640803,0.01148936,87037.0,87030.0,4.069e-05]
[1766593641006,0.0114891,87039.0,87030.0,4.069e-05]
[1766593641527,0.06893502,87040.0,87030.0,4.069e-05]
[1766593641937,0.06893484,87039.0,87030.0,4.069e-05]
[1766593642271,0.06893317,87041.0,87030.0,0.06898237]
[1766593642478,0.01148897,87040.0,87030.0,0.01153098]
[1766593643623,0.11742,87029.0,87014.0,0.0114924]
[1766593643828,0.11742,87027.0,87020.0,0.05745802]
[1766593644037,0.11742,87027.0,87017.0,0.011492]
[1766593644038,0.117018,87027.0,87017.0,0.011492]
[1766593644242,0.117018,87027.0,87020.0,0.01149161]
[1766593644444,0.01152,87029.0,87023.0,0.01149121]
[1766593644628,0.01152,87029.0,87024.0,0.01149108]
[1766593644834,0.01152,87029.0,87023.0,0.06894698]
[1766593644835,0.01152,87029.0,87023.0,0.01149121]
[1766593645032,0.01152,87029.0,87022.0,0.06894752]
[1766593645234,0.01152,87029.0,87023.0,0.06894727]
[1766593645457,0.01152,87029.0,87024.0,0.01149108]
[1766593645705,0.01152,87029.0,87023.0,0.01149121]
[1766593645907,0.01152,87029.0,87024.0,0.01149108]
[1766593646282,0.01152,87029.0,87022.0,0.01149134]
[1766593646484,0.01152,87029.0,87020.0,0.05745768]
[1766593646681,0.01152,87029.0,87021.0,0.01149147]
[1766593646880,0.01152,87029.0,87021.0,0.06894868]
[1766593647408,0.01152,87029.0,87021.0,0.01149147]
[1766593647610,0.01152,87029.0,87023.0,0.01149121]
[1766593647972,0.01152,87029.0,87021.0,0.05745693]
[1766593648178,0.01152,87029.0,87021.0,0.01149147]
[1766593648401,0.01152,87029.0,87015.0,0.36542738]
[1766593648402,0.1173,87028.0,87015.0,0.01152]
[1766593648576,0.1173,87028.0,87018.0,0.01149187]
[1766593648778,0.12879055,87028.0,87018.0,0.01149187]
[1766593648964,0.1173,87028.0,87018.0,0.01149187]
[1766593649570,0.12879055,87028.0,87018.0,0.01149187]
[1766593650316,0.1173,87028.0,87019.0,0.01149174]
[1766593650552,0.1173,87028.0,87018.0,0.06895112]
[1766593650899,0.1173,87028.0,87019.0,0.01149174]
[1766593651183,0.01152,87029.0,87023.0,0.01149121]
[1766593651362,0.01152,87029.0,87025.0,0.01149095]
[1766593651566,0.01152,87029.0,87024.0,0.01149108]
[1766593652018,0.01097,87029.0,87024.0,0.01149108]
[1766593652765,6.51e-05,87030.0,87025.0,0.01149095]
[1766593653802,6.51e-05,87030.0,87021.0,0.06894846]
[1766593654211,6.51e-05,87030.0,87023.0,0.01149121]
[1766593654436,6.51e-05,87030.0,87022.0,0.01149134]
[1766593655188,6.51e-05,87030.0,87023.0,0.01149121]
[1766593655390,0.01148963,87035.0,87022.0,0.06894799]
[1766593655391,0.01148817,87046.0,87035.0,0.01148963]
[1766593655594,0.01152,87045.0,87035.0,0.01148963]
[1766593655889,0.01152,87045.0,87034.0,0.01148976]
[1766593656142,0.01152,87045.0,87035.0,0.06893777]
[1766593656340,0.0004,87056.0,87048.0,0.01148791]
[1766593656512,0.001099,87035.0,87032.0,0.01149002]
[1766593656926,0.01152,87046.0,87030.0,6e-07]
[1766593656927,0.12700923,87038.0,87030.0,6e-07]
[1766593657129,0.01149015,87031.0,87018.0,0.04596]
[1766593657336,0.01148989,87033.0,87021.0,0.01149147]
[1766593657537,0.01148989,87033.0,87022.0,0.01149134]
[1766593657736,0.01152,87035.0,87019.0,0.02301174]
[1766593657737,0.05744881,87034.0,87019.0,0.02301174]
[1766593658024,0.01149055,87028.0,87019.0,0.01152]
[1766593658199,0.01149081,87026.0,87019.0,0.01152]
[1766593658371,0.06894411,87027.0,87019.0,0.01152]
[1766593658573,0.01149068,87027.0,87019.0,0.01152]
[1766593658780,0.11549029,87030.0,87019.0,0.01152]
[1766593659148,0.01149042,87029.0,87019.0,0.01152]
[1766593659355,0.11549029,87030.0,87020.0,0.01149161]
[1766593659557,0.104,87030.0,87019.0,0.02311806]
[1766593659756,0.104,87030.0,87020.0,0.01149161]
[1766593660295,0.01152,87029.0,87024.0,0.01149108]
[1766593660519,0.01152,87029.0,87021.0,0.06894873]
[1766593660718,0.01152,87029.0,87023.0,0.01149121]
[1766593660879,0.01152,87029.0,87022.0,0.01149134]
[1766593661090,0.01152,87029.0,87023.0,0.01149121]
[1766593661803,0.01152,87029.0,87024.0,0.01149108]
[1766593662004,0.01152,87029.0,87025.0,0.01149095]
[1766593662217,0.01152,87029.0,87024.0,0.01149108]
[1766593662614,0.01152,87029.0,87025.0,0.01149095]
[1766593663175,0.01152,87029.0,87024.0,0.01149108]
[1766593663706,0.01152,87029.0,87025.0,0.01149095]
[1766593663910,0.000549,87025.0,87018.0,0.01149187]
[1766593664147,0.104,87028.0,87018.0,0.01149187]
[1766593664401,0.104,87028.0,87019.0,0.05756444]
[1766593664586,0.104,87028.0,87021.0,0.01149147]
[1766593664801,0.000549,87021.0,87019.0,0.00010632]
[1766593665153,0.104,87028.0,87019.0,0.01159806]
[1766593665338,0.104,87028.0,87020.0,0.01149161]
[1766593665542,0.104,87028.0,87019.0,0.01159806]
[1766593665752,0.104,87028.0,87020.0,0.01149161]
[1766593665969,0.104,87028.0,87019.0,0.01159806]
[1766593666171,0.104,87028.0,87020.0,0.01149161]
[1766593666380,0.104,87028.0,87020.0,0.0689495]
[1766593666617,0.104,87028.0,87021.0,0.01149147]
[1766593666797,0.104,87028.0,87018.0,0.01149187]
[1766593666990,0.104,87028.0,87019.0,0.01149174]
[1766593668315,0.104,87028.0,87018.0,0.0690158]
[1766593668646,0.104,87028.0,87021.0,0.05745732]
[1766593668853,0.104,87028.0,87022.0,0.01149134]
[1766593669278,0.104,87028.0,87023.0,0.01149121]
[1766593669618,0.104,87028.0,87022.0,0.06894806]
[1766593670036,0.05744947,87035.0,87022.0,0.06894806]
[1766593670237,0.01152,87034.0,87023.0,0.01149121]
[1766593671104,0.06894098,87031.0,87020.0,0.01149161]
[1766593671237,0.000549,87023.0,87018.0,0.0001751]
[1766593671444,0.000549,87023.0,87017.0,0.01152]
[1766593671682,8.141e-05,87023.0,87017.0,0.01152]
[1766593671858,0.05753753,87023.0,87015.0,0.01152]
[1766593672064,8.141e-05,87023.0,87015.0,0.02301227]
[1766593672506,8.141e-05,87023.0,87016.0,0.01149213]
[1766593672816,8.141e-05,87023.0,87016.0,0.06895281]
[1766593672974,8.141e-05,87023.0,87017.0,0.011492]
[1766593673200,8.141e-05,87023.0,87017.0,0.06895203]
[1766593673395,0.06894305,87030.0,87015.0,0.02301227]
[1766593673396,0.11499,87033.0,87018.0,0.01149187]
[1766593673609,0.11499,87033.0,87025.0,0.01149095]
[1766593673812,0.11499,87033.0,87025.0,0.06894558]
[1766593674020,0.11499,87033.0,87026.0,0.01149081]
[1766593674222,0.11499,87033.0,87026.0,0.06894452]
[1766593674433,0.11499,87033.0,87025.0,0.06894558]
[1766593674592,0.11499,87033.0,87021.0,0.08046689]
[1766593674796,0.12647989,87033.0,87022.0,0.06894799]
[1766593675036,0.12647989,87033.0,87023.0,0.01149121]
[1766593675208,0.11499,87033.0,87025.0,0.01149095]
[1766593675409,0.11499,87033.0,87022.0,0.06894804]
[1766593675635,0.11499,87033.0,87025.0,0.01149095]
[1766593675809,0.11499,87033.0,87026.0,0.06894487]
[1766593676013,0.11499,87033.0,87028.0,0.01149055]
[1766593676414,0.11499,87033.0,87026.0,0.0689436]
[1766593676622,0.11499,87033.0,87026.0,0.01149081]
[1766593676834,0.11499,87033.0,87024.0,0.05745476]
[1766593677048,0.11499,87033.0,87025.0,0.01149095]
[1766593677626,0.11499,87033.0,87023.0,0.06894599]
[1766593678038,0.12647989,87033.0,87023.0,0.06894599]
[1766593678286,0.11499,87033.0,87024.0,0.06894643]
[1766593678814,0.11499,87033.0,87024.0,0.01149108]
[1766593679029,0.11499,87033.0,87025.0,0.01149095]
[1766593679523,0.11499,87033.0,87023.0,0.06894727]
[1766593679667,0.11499,87033.0,87025.0,0.01149095]
[1766593679872,0.11499,87033.0,87026.0,0.05745403]
[1766593680072,0.11499,87033.0,87024.0,0.01149108]
[1766593680414,0.11499,87033.0,87023.0,0.06894724]
[1766593680666,0.11499,87033.0,87023.0,0.01149121]
[1766593680858,0.12647989,87033.0,87023.0,0.01149121]
[1766593681070,0.01149068,87027.0,87011.0,0.12439]
[1766593681272,0.00055,87016.0,87013.0,0.01152]
[1766593681402,0.10581,87021.0,87012.0,0.01152]
[1766593681601,0.06895056,87019.0,87012.0,0.00642979]
[1766593681807,0.06895062,87019.0,87008.0,0.01152]
[1766593682037,0.01149187,87018.0,87008.0,0.02301319]
[1766593682582,0.0689508,87019.0,87008.0,0.06898591]
[1766593682801,0.05746069,87016.0,87008.0,0.01152]
[1766593683003,0.01149227,87015.0,87008.0,0.01152]
[1766593683225,0.0114924,87014.0,87008.0,0.01152]
[1766593683456,0.01149332,87007.0,87004.0,0.00011]
[1766593683689,0.01160372,87004.0,86997.0,0.01152]
[1766593683914,0.00019955,87004.0,86997.0,0.01152]
[1766593684382,0.01158327,87004.0,86997.0,0.01152]
[1766593684588,0.01158327,87004.0,86993.0,0.01160517]
[1766593684589,0.01149412,87001.0,86993.0,0.00011]
[1766593684795,0.09916,87003.0,86993.0,0.00011]
[1766593685005,0.11065385,87003.0,86993.0,0.01160517]
[1766593685223,0.11065385,87003.0,86993.0,0.00011]
[1766593685430,0.09916,87003.0,86993.0,0.05758559]
[1766593685622,0.11065385,87003.0,86993.0,0.00011]
[1766593686035,0.0114924,87014.0,87001.0,0.01149412]
[1766593686186,0.01149266,87012.0,87001.0,0.12439]
[1766593686389,0.01149279,87011.0,87001.0,0.12439]
[1766593686605,0.06895712,87011.0,87001.0,0.12439]
[1766593686787,0.01149293,87010.0,87001.0,0.12439]
[1766593686988,0.01149279,87011.0,87001.0,0.12439]
[1766593687193,0.01149279,87011.0,87001.0,0.13588412]
[1766593687443,0.01149279,87011.0,85100.0,0.1156]
[1766593687444,0.01149121,87023.0,87007.0,0.12439]
[1766593687734,0.01152,87022.0,87015.0,0.01149227]
[1766593687978,0.01152,87022.0,87016.0,0.0689528]
[1766593688304,0.01152,87022.0,87011.0,0.2298553]
[1766593688305,0.01152,87022.0,87013.0,0.06895511]
[1766593688506,0.01152,87022.0,87014.0,0.06895433]
[1766593688705,0.01152,87022.0,87015.0,0.06895353]
[1766593688976,0.01152,87022.0,87008.0,0.22986257]
[1766593688977,0.01152,87022.0,87008.0,0.12439]
[1766593689193,0.000549,87015.0,87008.0,0.12439]
[1766593689313,0.06894932,87021.0,87009.0,0.05746531]
[1766593689536,0.06894892,87021.0,87011.0,0.12439]
[1766593690646,0.06894892,87021.0,87011.0,0.13588279]
[1766593691675,0.01149147,87021.0,87011.0,0.12439]
[1766593691875,0.01149147,87021.0,87011.0,0.13588279]
[1766593692102,0.01152,87022.0,87012.0,0.05746277]
[1766593692302,0.02301134,87022.0,87012.0,0.01149266]
[1766593692827,0.0804682,87022.0,87012.0,0.01149266]
[1766593693021,0.02301134,87022.0,87012.0,0.01149266]
[1766593694973,0.02301134,87022.0,87012.0,0.06895593]
[1766593696071,0.01152,87022.0,87013.0,0.01149253]
[1766593696490,0.02301134,87022.0,87012.0,0.01149266]
[1766593696694,0.01149147,87021.0,87011.0,0.19334632]
[1766593696847,0.01149147,87021.0,87012.0,0.01149266]
[1766593697048,0.02301134,87022.0,87012.0,0.01149266]
[1766593698063,0.01149147,87021.0,87011.0,0.01149279]
[1766593698266,0.08046866,87022.0,87007.0,0.00035475]
[1766593698267,0.000549,87011.0,87007.0,0.00035475]
[1766593698463,0.02301213,87016.0,87007.0,0.00035475]
[1766593698823,0.02301213,87016.0,86992.0,0.12439]
[1766593698824,0.01149412,87001.0,86992.0,0.12439]
[1766593699032,0.01149412,87001.0,86985.0,0.01149623]
[1766593699033,0.01149478,86996.0,86986.0,0.0114961]
[1766593699174,0.01149478,86996.0,86984.0,0.06897756]
[1766593699175,0.01152,86995.0,86984.0,0.06897756]
[1766593699378,0.01152,86995.0,86986.0,0.0114961]
[1766593699607,0.01152,86995.0,86987.0,0.01149597]
[1766593699978,0.01152,86995.0,86987.0,0.06897564]
[1766593700199,0.01152,86995.0,86987.0,0.01149597]
[1766593700419,0.01152,86995.0,86986.0,0.0114961]
[1766593700817,0.01152,86995.0,86987.0,0.01149597]
[1766593701172,0.01152,86995.0,86986.0,0.06897658]
[1766593701323,0.01152,86995.0,86985.0,0.01149623]
[1766593701506,0.01152,86995.0,86986.0,0.0114961]
[1766593702326,0.01152,86995.0,86987.0,0.01149597]
[1766593703346,0.01152,86995.0,86988.0,0.01149583]
[1766593703723,0.01152,86995.0,86989.0,0.0114957]
[1766593704912,0.01152,86995.0,86987.0,0.06897542]
[1766593705195,0.01149544,86991.0,86979.0,0.01149702]
[1766593705333,0.000439,86987.0,86979.0,0.01149702]
[1766593705533,0.08049368,86990.0,86979.0,0.01149702]
[1766593705732,0.01152,86990.0,86982.0,0.01149663]
[1766593706568,0.01152,86990.0,86983.0,0.01149649]
[1766593707032,0.01152,86990.0,86983.0,0.06897897]
[1766593707418,0.01152,86990.0,86981.0,0.01149676]
[1766593707419,0.01152,86990.0,86981.0,0.06898054]
[1766593707693,0.01152,86990.0,86980.0,0.01149689]
[1766593707894,0.01152,86990.0,86983.0,0.05748244]
[1766593707895,0.01141,86990.0,86983.0,0.05748244]
[1766593708029,0.01141,86990.0,86983.0,0.01149649]
[1766593708206,0.01141,86990.0,86981.0,0.01149676]
[1766593708207,0.000439,86983.0,86973.0,0.01149782]
[1766593708424,0.000439,86983.0,86980.0,0.01149689]
[1766593708633,0.000439,86983.0,86981.0,0.05748318]
[1766593708916,0.11022,86990.0,86984.0,0.01149636]
[1766593709121,0.11022,86990.0,86981.0,0.05748381]
[1766593709273,0.11022,86990.0,86980.0,0.06898106]
[1766593709473,0.09881,86990.0,86987.0,0.01149597]
[1766593709674,0.09881,86990.0,86960.0,0.39721518]
[1766593709675,0.01152,86999.0,86992.0,0.17592653]
[1766593709881,0.01152,86999.0,86995.0,0.01149491]
[1766593710210,4.41e-06,87001.0,86995.0,0.18741915]
[1766593710392,0.01149346,87006.0,86996.0,0.11845]
[1766593710543,0.02301359,87005.0,86996.0,0.11855638]
[1766593710745,0.01149372,87004.0,86996.0,0.11855638]
[1766593710959,0.06,86999.0,86996.0,0.11855638]
[1766593711275,0.06,86999.0,86996.0,0.00010638]
[1766593715562,0.06,86999.0,86990.0,0.24140446]
[1766593715563,0.0114953,86992.0,86979.0,0.01149702]
[1766593715763,0.000106,86996.0,86968.0,0.11845]
[1766593715764,0.11450859,86985.0,86974.0,0.01149768]
[1766593715991,0.12600482,86985.0,86976.0,0.00019955]
[1766593716188,0.01149636,86984.0,86976.0,0.00019955]
[1766593717033,0.11387,86985.0,86976.0,0.00019955]
[1766593717524,0.11387,86985.0,86976.0,0.01169697]
[1766593718224,0.11387,86985.0,86976.0,0.00019955]
[1766593718435,0.0574827,86983.0,86976.0,0.00019955]
[1766593718630,0.06897919,86983.0,86976.0,0.00019955]
[1766593719052,0.01152,86987.0,86978.0,0.01149716]
[1766593719252,0.057482,86984.0,86976.0,0.00019955]
[1766593719466,0.05748268,86983.0,86976.0,0.00019955]
[1766593719674,0.06897949,86983.0,86976.0,0.00019955]
[1766593719883,0.01149636,86984.0,86976.0,0.00019955]
[1766593720097,0.01149636,86984.0,86970.0,0.01149821]
[1766593720098,0.000199,86976.0,86967.0,0.01149861]
[1766593720271,0.000199,86976.0,86970.0,0.01149821]
[1766593720653,0.08050176,86980.0,86968.0,0.01149848]
[1766593720654,0.06898238,86979.0,86968.0,0.01149848]
[1766593720894,0.01152,86980.0,86970.0,0.01149821]
[1766593721108,0.01152,86980.0,86974.0,0.06898609]
[1766593721325,0.01152,86980.0,86975.0,0.01149755]
[1766593721544,0.01152,86980.0,86974.0,0.01149768]
[1766593722188,0.01152,86980.0,86975.0,0.01149755]
[1766593722491,0.01152,86980.0,86976.0,0.01149742]
[1766593722684,0.06908792,86986.0,86975.0,0.01149755]
[1766593722685,0.000549,86976.0,86975.0,0.11431]
[1766593723034,0.01152,86982.0,86976.0,0.01149742]
[1766593723230,0.01152,86982.0,86975.0,0.11431]
[1766593723542,0.01152,86982.0,86974.0,0.06898601]
[1766593723543,0.01125422,86982.0,86974.0,0.01149768]
[1766593723889,0.02275085,86982.0,86972.0,0.01149795]
[1766593724090,0.02275085,86982.0,86970.0,0.01152]
[1766593724091,0.06898057,86981.0,86970.0,0.01152]
[1766593724247,0.01149702,86979.0,86970.0,0.01152]
[1766593724447,0.01149689,86980.0,86970.0,0.06901098]
[1766593724648,0.01125422,86982.0,86971.0,0.01149808]
[1766593724860,0.01125422,86982.0,86972.0,0.06898759]
[1766593724861,0.02275085,86982.0,86972.0,0.06898759]
[1766593725064,0.02275085,86982.0,86966.0,0.01163]
[1766593725065,0.01149716,86978.0,86966.0,0.01163]
[1766593725262,0.10763,86979.0,86966.0,0.01163]
[1766593725467,0.01125422,86982.0,86975.0,0.01149755]
[1766593725803,0.01125422,86982.0,86976.0,0.01149742]